bitfinex-derivatives/quotes_BNBF0:USTF0_20251002
["timestamp","ask_amount","ask_price","bid_price","bid_amount"]
[1759432511049,0.52246563,1072.1,1071.0,1.4758666]
[1759432511248,0.83891724,1072.7,1071.0,1.4758666]
[1759432511451,0.52251033,1072.6,1071.0,1.4758666]
[1759432511648,0.52251033,1072.5,1071.0,1.4758666]
[1759432511851,0.52251033,1072.4,1071.0,1.4758666]
[1759432512050,0.52251033,1072.3,1071.0,1.4758666]
[1759432512249,0.52251033,1072.2,1071.0,1.4758666]
[1759432512550,0.52251033,1072.1,1071.0,1.4758666]
[1759432512751,0.52251033,1072.0,1071.0,1.4758666]
[1759432513053,0.52251033,1071.9,1071.0,1.4758666]
[1759432513356,0.83891724,1072.6,1071.0,1.4758666]
[1759432513553,0.52252548,1072.5,1071.0,1.4758666]
[1759432513750,0.52252548,1072.4,1071.0,1.4758666]
[1759432514050,0.52252548,1072.3,1071.0,1.4758666]
[1759432514254,0.52252548,1072.2,1071.0,1.4758666]
[1759432514451,0.52252548,1072.1,1071.0,1.4758666]
[1759432514655,0.52252548,1072.0,1071.0,1.4758666]
[1759432514956,0.52252548,1071.9,1071.0,1.4758666]
[1759432515150,0.52252548,1071.8,1071.0,1.4758666]
[1759432515355,0.83891724,1072.6,1071.0,1.4758666]
[1759432515553,1.36130567,1072.5,1071.0,1.4758666]
[1759432515756,0.52238843,1072.4,1071.0,1.4758666]
[1759432515955,0.52238843,1072.3,1071.0,1.4758666]
[1759432516157,0.52238843,1072.2,1071.0,1.4758666]
[1759432516354,0.52238843,1072.1,1071.0,1.4758666]
[1759432516558,0.52238843,1072.0,1071.0,1.4758666]
[1759432516858,0.52238843,1071.9,1071.0,1.4758666]
[1759432517059,0.52238843,1071.8,1071.0,1.4758666]
[1759432517359,0.52238843,1071.7,1071.0,1.4758666]
[1759432517656,0.5221806,1071.6,1071.0,1.4758666]
[1759432517857,0.83891724,1072.3,1071.0,1.4758666]
[1759432518059,0.52218071,1072.2,1071.0,1.4758666]
[1759432518358,0.52218071,1072.1,1071.0,1.4758666]
[1759432518555,0.52218071,1072.0,1071.0,1.4758666]
[1759432518860,0.52218071,1071.9,1071.0,1.4758666]
[1759432519059,0.52218071,1071.8,1071.0,1.4758666]
[1759432519354,0.52218071,1071.7,1071.0,1.4758666]
[1759432519559,0.83891724,1072.3,1071.0,1.4758666]
[1759432519758,0.52176526,1072.2,1071.0,1.4758666]
[1759432520057,0.52176526,1072.1,1071.0,1.4758666]
[1759432520360,0.52176526,1072.0,1071.0,1.4758666]
[1759432520555,0.52176526,1071.9,1071.0,1.4758666]
[1759432520758,0.52176526,1071.8,1071.0,1.4758666]
[1759432520957,0.52176526,1071.7,1071.0,1.4758666]
[1759432521158,0.83891724,1072.2,1071.0,1.4758666]
[1759432521357,0.52143681,1072.1,1071.0,1.4758666]
[1759432521560,0.52143681,1072.0,1071.0,1.4758666]
[1759432521860,0.52143681,1071.9,1071.0,1.4758666]
[1759432522157,2.93346596,1073.6,1071.0,1.4758666]
[1759432522158,0.52143681,1071.8,1071.0,1.4758666]
[1759432522361,0.52143681,1071.7,1071.0,1.4758666]
[1759432522661,0.83891724,1072.4,1071.0,1.4758666]
[1759432522862,0.52129051,1072.3,1071.0,1.4758666]
[1759432523062,0.52129051,1072.2,1071.0,1.4758666]
[1759432523260,0.52129051,1072.1,1071.0,1.4758666]
[1759432523459,0.52129051,1072.0,1071.0,1.4758666]
[1759432523664,0.52129051,1071.9,1071.0,1.4758666]
[1759432523964,0.52129051,1071.8,1071.0,1.4758666]
[1759432524166,0.52129051,1071.7,1071.0,1.4758666]
[1759432524364,0.52129051,1071.6,1071.0,1.4758666]
[1759432524562,0.52129051,1071.5,1071.0,1.4758666]
[1759432524766,0.52129051,1071.4,1071.0,1.4758666]
[1759432524964,0.83891724,1072.2,1071.0,1.4758666]
[1759432525162,0.52098055,1072.1,1071.0,1.4758666]
[1759432525362,0.52098055,1072.0,1071.0,1.4758666]
[1759432525667,0.52098055,1071.9,1071.0,1.4758666]
[1759432525962,0.52098055,1071.8,1071.0,1.4758666]
[1759432526163,0.52098055,1071.7,1071.0,1.4758666]
[1759432526366,1.2571997,1072.4,1071.0,1.4758666]
[1759432526367,0.52098055,1071.6,1071.0,1.4758666]
[1759432526567,0.52098055,1071.5,1071.0,1.4758666]
[1759432526768,0.52098055,1071.4,1071.0,1.4758666]
[1759432526965,0.83891724,1072.1,1071.0,1.4758666]
[1759432527165,0.5208912,1072.0,1071.0,1.4758666]
[1759432527369,0.5208912,1071.9,1071.0,1.4758666]
[1759432527568,0.5208912,1071.8,1071.0,1.4758666]
[1759432527867,0.5208912,1071.7,1071.0,1.4758666]
[1759432528169,0.5208912,1071.6,1071.0,1.4758666]
[1759432528470,0.83891724,1072.4,1071.0,1.4758666]
[1759432528770,0.5204469,1072.3,1071.0,1.4758666]
[1759432528967,0.5204469,1072.2,1071.0,1.4758666]
[1759432529166,0.5204469,1072.1,1071.0,1.4758666]
[1759432529367,0.5204469,1072.0,1071.0,1.4758666]
[1759432529570,0.5204469,1071.9,1071.0,1.4758666]
[1759432529769,0.5204469,1071.8,1071.0,1.4758666]
[1759432529968,0.5204469,1071.7,1071.0,1.4758666]
[1759432530170,0.5204469,1071.6,1071.0,1.4758666]
[1759432530371,0.83891724,1072.4,1071.0,1.4758666]
[1759432530671,0.52022529,1072.3,1071.0,1.4758666]
[1759432530869,0.52022529,1072.2,1071.0,1.4758666]
[1759432531064,0.52022529,1072.1,1071.0,1.4758666]
[1759432531271,0.52022529,1072.0,1071.0,1.4758666]
[1759432531566,0.52022529,1071.9,1071.0,1.4758666]
[1759432531768,0.52022529,1071.8,1071.0,1.4758666]
[1759432531969,0.52022529,1071.7,1071.0,1.4758666]
[1759432532171,0.52022529,1071.6,1071.0,1.4758666]
[1759432532368,0.83891724,1072.4,1071.0,1.4758666]
[1759432532571,0.52004086,1072.3,1071.0,1.4758666]
[1759432532769,0.52004086,1072.2,1071.0,1.4758666]
[1759432532973,0.52004086,1072.1,1071.0,1.4758666]
[1759432533174,0.52004086,1072.0,1071.0,1.4758666]
[1759432533470,0.52004086,1071.9,1071.0,1.4758666]
[1759432533674,0.52004086,1071.8,1071.0,1.4758666]
[1759432533871,0.52004086,1071.7,1071.0,1.4758666]
[1759432534171,0.83891724,1072.4,1071.0,1.4758666]
[1759432534471,0.51988362,1072.3,1071.0,1.4758666]
[1759432534675,0.51988362,1072.2,1071.0,1.4758666]
[1759432534870,0.51988362,1072.1,1071.0,1.4758666]
[1759432535076,0.51988362,1072.0,1071.0,1.4758666]
[1759432535276,0.51988362,1071.9,1071.0,1.4758666]
[1759432535476,0.51988362,1071.8,1071.0,1.4758666]
[1759432535673,0.51988362,1071.7,1071.0,1.4758666]
[1759432535877,0.83891724,1072.6,1071.0,1.4758666]
[1759432536076,0.51980691,1072.5,1071.0,1.4758666]
[1759432536275,0.83891724,1072.6,1071.0,1.4758666]
[1759432536276,0.51980691,1072.4,1071.0,1.4758666]
[1759432536476,0.51980691,1072.3,1071.0,1.4758666]
[1759432536678,0.51980691,1072.2,1071.0,1.4758666]
[1759432536878,0.51980691,1072.1,1071.0,1.4758666]
[1759432537175,0.51980691,1072.0,1071.0,1.4758666]
[1759432537378,0.51980691,1071.9,1071.0,1.4758666]
[1759432537678,0.83891724,1072.4,1071.0,1.4758666]
[1759432537875,2.93346596,1075.1,1071.0,1.4758666]
[1759432537876,0.51961238,1072.3,1071.0,1.4758666]
[1759432538178,0.51961238,1072.2,1071.0,1.4758666]
[1759432538378,0.51961238,1072.1,1071.0,1.4758666]
[1759432538574,0.83891724,1072.7,1071.0,1.4758666]
[1759432538874,0.51955713,1072.6,1071.0,1.4758666]
[1759432539079,0.51955713,1072.5,1071.0,1.4758666]
[1759432539379,0.51955713,1072.4,1071.0,1.4758666]
[1759432539579,0.51955713,1072.3,1071.0,1.4758666]
[1759432539876,0.51955713,1072.2,1071.0,1.4758666]
[1759432540079,0.51955713,1072.1,1071.0,1.4758666]
[1759432540279,0.83891724,1072.7,1071.0,1.4758666]
[1759432540477,0.51948537,1072.6,1071.0,1.4758666]
[1759432540676,0.51948537,1072.5,1071.0,1.4758666]
[1759432540876,0.51948537,1072.4,1071.0,1.4758666]
[1759432541077,0.51948537,1072.3,1071.0,1.4758666]
[1759432541278,0.51948537,1072.2,1071.0,1.4758666]
[1759432541581,0.51948537,1072.1,1071.0,1.4758666]
[1759432541779,0.83891724,1072.8,1071.0,1.4758666]
[1759432541975,0.5195313,1072.7,1071.0,1.4758666]
[1759432542177,0.5195313,1072.6,1071.0,1.4758666]
[1759432542380,0.5195313,1072.5,1071.0,1.4758666]
[1759432542580,0.5195313,1072.4,1071.0,1.4758666]
[1759432542778,0.5195313,1072.3,1071.0,1.4758666]
[1759432542981,0.5195313,1072.2,1071.0,1.4758666]
[1759432543282,0.5195313,1072.1,1071.0,1.4758666]
[1759432543482,0.83891724,1072.6,1071.0,1.4758666]
[1759432543682,1.35850121,1072.5,1071.0,1.4758666]
[1759432543880,0.51958397,1072.4,1071.0,1.4758666]
[1759432544079,0.51958397,1072.3,1071.0,1.4758666]
[1759432544278,0.51958397,1072.2,1071.0,1.4758666]
[1759432544482,0.51958397,1072.1,1071.0,1.4758666]
[1759432544680,0.51958397,1072.0,1071.0,1.4758666]
[1759432544884,0.83891724,1072.7,1071.0,1.4758666]
[1759432545082,0.51961839,1072.6,1071.0,1.4758666]
[1759432545281,0.51961839,1072.5,1071.0,1.4758666]
[1759432545487,0.51961839,1072.4,1071.0,1.4758666]
[1759432545787,0.51961839,1072.3,1071.0,1.4758666]
[1759432545988,0.51961839,1072.2,1071.0,1.4758666]
[1759432546188,0.51961839,1072.1,1071.0,1.4758666]
[1759432546385,0.51961839,1072.0,1071.0,1.4758666]
[1759432546591,0.51961839,1071.9,1071.0,1.4758666]
[1759432546788,0.51961839,1071.8,1071.0,1.4758666]
[1759432546988,0.83891724,1072.4,1071.0,1.4758666]
[1759432547189,0.51972486,1072.3,1071.0,1.4758666]
[1759432547390,0.51972486,1072.2,1071.0,1.4758666]
[1759432547588,0.51972486,1072.1,1071.0,1.4758666]
[1759432547785,0.83891724,1072.3,1071.0,1.4758666]
[1759432547786,0.51972486,1072.0,1071.0,1.4758666]
[1759432548086,0.51972486,1071.9,1071.0,1.4758666]
[1759432548289,0.51972486,1071.8,1071.0,1.4758666]
[1759432548488,0.83891724,1072.4,1071.0,1.4758666]
[1759432548687,0.51973204,1072.3,1071.0,1.4758666]
[1759432548884,0.51973204,1072.2,1071.0,1.4758666]
[1759432549090,0.51973204,1072.1,1071.0,1.4758666]
[1759432549290,0.51973204,1072.0,1071.0,1.4758666]
[1759432549588,0.51973204,1071.9,1071.0,1.4758666]
[1759432549790,0.51973204,1071.8,1071.0,1.4758666]
[1759432549990,0.51973204,1071.7,1071.0,1.4758666]
[1759432550287,0.83891724,1072.4,1071.0,1.4758666]
[1759432550490,0.51982614,1072.3,1071.0,1.4758666]
[1759432550688,0.51982614,1072.2,1071.0,1.4758666]
[1759432550888,0.51982614,1072.1,1071.0,1.4758666]
[1759432551090,0.51982614,1072.0,1071.0,1.4758666]
[1759432551288,0.51982614,1071.9,1071.0,1.4758666]
[1759432551488,0.51982614,1071.8,1071.0,1.4758666]
[1759432551689,0.83891724,1072.4,1071.0,1.4758666]
[1759432551888,1.35878182,1072.3,1071.0,1.4758666]
[1759432552092,0.51986458,1072.2,1071.0,1.4758666]
[1759432552292,0.51986458,1072.1,1071.0,1.4758666]
[1759432552589,0.51986458,1072.0,1071.0,1.4758666]
[1759432552892,0.51986458,1071.9,1071.0,1.4758666]
[1759432553192,0.51986458,1071.8,1071.0,1.4758666]
[1759432553488,0.51986458,1071.7,1071.0,1.4758666]
[1759432553692,0.83891724,1072.5,1071.0,1.4758666]
[1759432553889,0.519978,1072.4,1071.0,1.4758666]
[1759432554188,0.519978,1072.3,1071.0,1.4758666]
[1759432554494,0.519978,1072.2,1071.0,1.4758666]
[1759432554689,0.519978,1072.1,1071.0,1.4758666]
[1759432554892,0.519978,1072.0,1071.0,1.4758666]
[1759432555193,0.519978,1071.9,1071.0,1.4758666]
[1759432555390,0.519978,1071.8,1071.0,1.4758666]
[1759432555586,0.519978,1071.7,1071.0,1.4758666]
[1759432555792,0.83891724,1072.6,1071.0,1.4758666]
[1759432555987,1.35902153,1072.5,1071.0,1.4758666]
[1759432556192,0.52010429,1072.4,1071.0,1.4758666]
[1759432556392,0.52010429,1072.3,1071.0,1.4758666]
[1759432556589,0.52010429,1072.2,1071.0,1.4758666]
[1759432556788,0.52010429,1072.1,1071.0,1.4758666]
[1759432556991,0.83891724,1072.9,1071.0,1.4758666]
[1759432557194,0.52006697,1072.8,1071.0,1.4758666]
[1759432557490,0.52006697,1072.7,1071.0,1.4758666]
[1759432557790,0.52006697,1072.6,1071.0,1.4758666]
[1759432557989,0.52006697,1072.5,1071.0,1.4758666]
[1759432558190,0.52006697,1072.4,1071.0,1.4758666]
[1759432558392,0.52006697,1072.3,1071.0,1.4758666]
[1759432558693,0.52006697,1072.2,1071.0,1.4758666]
[1759432558894,0.52006697,1072.1,1071.0,1.4758666]
[1759432559091,0.83891724,1072.9,1071.0,1.4758666]
[1759432559292,0.52032604,1072.8,1071.0,1.4758666]
[1759432559494,0.52032604,1072.7,1071.0,1.4758666]
[1759432559690,0.52032604,1072.6,1071.0,1.4758666]
[1759432559893,0.52032604,1072.5,1071.0,1.4758666]
[1759432560092,0.52032604,1072.4,1071.0,1.4758666]
[1759432560290,0.52032604,1072.3,1071.0,1.4758666]
[1759432560494,0.52032604,1072.2,1071.0,1.4758666]
[1759432560793,0.83891724,1072.8,1071.0,1.4758666]
[1759432560994,0.52041078,1072.7,1071.0,1.4758666]
[1759432561192,0.52041078,1072.6,1071.0,1.4758666]
[1759432561392,0.52041078,1072.5,1071.0,1.4758666]
[1759432561595,0.52041078,1072.4,1071.0,1.4758666]
[1759432561895,0.52041078,1072.3,1071.0,1.4758666]
[1759432562095,0.83891724,1072.8,1071.0,1.4758666]
[1759432562296,0.52050405,1072.7,1071.0,1.4758666]
[1759432562492,0.52050405,1072.6,1071.0,1.4758666]
[1759432562697,0.52050405,1072.5,1071.0,1.4758666]
[1759432562993,0.52050405,1072.4,1071.0,1.4758666]
[1759432563195,0.52050405,1072.3,1071.0,1.4758666]
[1759432563495,0.83891724,1072.9,1071.0,1.4758666]
[1759432563694,1.35941269,1072.8,1071.0,1.4758666]
[1759432563895,0.52049545,1072.7,1071.0,1.4758666]
[1759432564199,0.52049545,1072.6,1071.0,1.4758666]
[1759432564397,0.52049545,1072.5,1071.0,1.4758666]
[1759432564594,0.52049545,1072.4,1071.0,1.4758666]
[1759432564796,0.52049545,1072.3,1071.0,1.4758666]
[1759432564993,0.83891724,1072.9,1071.0,1.4758666]
[1759432565195,0.52058592,1072.8,1071.0,1.4758666]
[1759432565394,0.52058592,1072.7,1071.0,1.4758666]
[1759432565596,0.52058592,1072.6,1071.0,1.4758666]
[1759432565795,0.52058592,1072.5,1071.0,1.4758666]
[1759432566095,0.83891724,1073.3,1071.0,1.4758666]
[1759432566298,0.52047293,1073.2,1071.0,1.4758666]
[1759432566498,0.52047293,1073.1,1071.0,1.4758666]
[1759432566796,0.52047293,1073.0,1071.0,1.4758666]
[1759432566994,0.52047293,1072.9,1071.0,1.4758666]
[1759432567198,0.52047293,1072.8,1071.0,1.4758666]
[1759432567395,0.52047293,1072.7,1071.0,2.71544692]
[1759432567598,0.83891724,1073.4,1071.0,2.71544692]
[1759432567794,0.5200242,1073.3,1071.0,1.4758666]
[1759432567996,0.5200242,1073.2,1071.0,1.4758666]
[1759432568302,0.5200242,1073.1,1071.0,1.4758666]
[1759432568498,0.5200242,1073.0,1071.0,1.4758666]
[1759432568697,0.5200242,1072.9,1071.0,1.4758666]
[1759432569002,0.5200242,1072.8,1071.0,1.4758666]
[1759432569204,0.5200242,1072.7,1071.0,1.4758666]
[1759432569402,0.83891724,1073.4,1071.0,1.4758666]
[1759432569601,0.5198265,1073.3,1071.0,1.4758666]
[1759432569798,0.5198265,1073.2,1071.0,1.4758666]
[1759432570002,0.5198265,1073.1,1071.0,1.4758666]
[1759432570200,0.5198265,1073.0,1071.0,1.4758666]
[1759432570402,0.5198265,1072.9,1071.0,1.4758666]
[1759432570600,0.5198265,1072.8,1071.0,1.4758666]
[1759432570899,0.5198265,1072.7,1071.0,1.4758666]
[1759432571103,0.83891724,1073.4,1071.0,1.4758666]
[1759432571303,0.5196854,1073.3,1071.0,1.4758666]
[1759432571503,0.5196854,1073.2,1071.0,1.4758666]
[1759432571700,0.5196854,1073.1,1071.0,1.4758666]
[1759432571999,0.5196854,1073.0,1071.0,2.71544692]
[1759432572204,0.5196854,1072.9,1071.1,1.23958032]
[1759432572498,0.5196854,1072.8,1071.1,1.23958032]
[1759432572700,0.83891724,1073.3,1071.1,1.23958032]
[1759432572901,0.51920302,1073.2,1071.1,1.23958032]
[1759432573100,0.51920302,1073.1,1071.1,1.23958032]
[1759432573304,0.51920302,1073.0,1071.0,2.71544692]
[1759432573503,0.51920302,1072.9,1071.0,2.71544692]
[1759432573699,0.51920302,1072.8,1071.0,2.71544692]
[1759432573900,0.83891724,1073.4,1071.0,2.71544692]
[1759432574203,0.51896854,1073.3,1071.0,1.4758666]
[1759432574401,0.51896854,1073.2,1071.0,1.4758666]
[1759432574602,0.51896854,1073.1,1071.0,1.4758666]
[1759432574799,0.51896854,1073.0,1071.0,1.4758666]
[1759432575001,0.51896854,1072.9,1071.0,1.4758666]
[1759432575302,0.51896854,1072.8,1071.0,1.4758666]
[1759432575604,0.83891724,1073.4,1071.0,1.4758666]
[1759432575806,0.51851322,1073.3,1071.0,1.4758666]
[1759432576105,0.51851322,1073.2,1071.0,1.4758666]
[1759432576405,0.51851322,1073.1,1071.0,1.4758666]
[1759432576705,0.51851322,1073.0,1071.0,1.4758666]
[1759432576905,0.51851322,1072.9,1071.0,1.4758666]
[1759432577105,0.51851322,1072.8,1071.0,1.4758666]
[1759432577401,0.83891724,1073.8,1071.0,1.4758666]
[1759432577604,0.51814389,1073.7,1071.0,1.4758666]
[1759432577806,0.51814389,1073.6,1071.0,1.4758666]
[1759432578005,0.51814389,1073.5,1071.0,1.4758666]
[1759432578301,0.51814389,1073.4,1071.0,1.4758666]
[1759432578504,0.51814389,1073.3,1071.0,1.4758666]
[1759432578704,0.51814389,1073.2,1071.0,1.4758666]
[1759432578908,0.51814389,1073.1,1071.0,1.4758666]
[1759432579104,0.51814389,1073.0,1071.0,1.4758666]
[1759432579301,0.51814389,1072.9,1071.0,1.4758666]
[1759432579601,1.41935997,1074.2,1071.0,1.4758666]
[1759432579602,0.51814389,1072.8,1071.0,1.4758666]
[1759432579804,0.83891724,1073.8,1071.0,1.4758666]
[1759432580002,0.51785938,1073.7,1071.0,1.4758666]
[1759432580301,1.35677662,1073.6,1071.0,1.4758666]
[1759432580502,0.16216027,1074.2,1071.0,1.4758666]
[1759432580503,1.35677662,1073.5,1071.0,1.4758666]
[1759432580702,0.51785938,1073.4,1071.0,1.4758666]
[1759432580902,0.51785938,1073.3,1071.0,1.4758666]
[1759432581105,0.51785938,1073.2,1071.0,1.4758666]
[1759432581305,0.51785938,1073.1,1071.0,1.4758666]
[1759432581503,0.51785938,1073.0,1071.0,1.4758666]
[1759432581807,0.51785938,1072.9,1071.0,1.4758666]
[1759432582102,0.51785938,1072.8,1071.0,1.4758666]
[1759432582306,0.83891724,1073.6,1071.0,1.4758666]
[1759432582506,0.51753576,1073.5,1071.0,1.4758666]
[1759432582802,0.51753576,1073.4,1071.0,1.4758666]
[1759432583005,0.51753576,1073.3,1071.0,1.4758666]
[1759432583206,0.51753576,1073.2,1071.0,1.4758666]
[1759432583403,0.51753576,1073.1,1071.0,1.4758666]
[1759432583603,0.51753576,1073.0,1071.0,1.4758666]
[1759432583809,0.51753576,1072.9,1071.0,1.4758666]
[1759432584007,0.51753576,1072.8,1071.0,1.4758666]
[1759432584207,0.83891724,1073.7,1071.0,1.4758666]
[1759432584404,0.51750667,1073.6,1071.0,1.4758666]
[1759432584609,0.83891724,1073.7,1071.0,1.4758666]
[1759432584809,0.51745333,1073.6,1071.0,1.4758666]
[1759432585012,0.51745333,1073.5,1071.0,1.4758666]
[1759432585207,0.51745333,1073.4,1071.0,1.4758666]
[1759432585408,0.51745333,1073.3,1071.0,1.4758666]
[1759432585710,0.51745333,1073.2,1071.0,1.4758666]
[1759432585910,0.83891724,1073.9,1071.0,1.4758666]
[1759432586107,0.51717305,1073.8,1071.0,1.4758666]
[1759432586311,0.51717305,1073.7,1071.0,1.4758666]
[1759432586512,0.51717305,1073.6,1071.0,1.4758666]
[1759432586808,0.51717305,1073.5,1071.0,1.4758666]
[1759432587014,0.51717305,1073.4,1071.0,1.4758666]
[1759432587312,0.51717305,1073.3,1071.0,1.4758666]
[1759432587513,0.51717305,1073.2,1071.0,1.4758666]
[1759432587712,0.51717305,1073.1,1071.0,1.4758666]
[1759432587911,0.83891724,1073.6,1071.0,1.4758666]
[1759432588109,0.517122,1073.5,1071.0,1.4758666]
[1759432588309,0.517122,1073.4,1071.0,1.4758666]
[1759432588513,0.517122,1073.3,1071.0,1.4758666]
[1759432588808,0.517122,1073.2,1071.0,1.4758666]
[1759432589010,0.517122,1073.1,1071.0,1.4758666]
[1759432589212,0.83891724,1073.9,1071.0,1.4758666]
[1759432589213,0.517122,1073.0,1071.0,1.4758666]
[1759432589411,0.83891724,1073.9,1071.0,1.4758666]
[1759432589610,0.51703684,1073.8,1071.0,1.4758666]
[1759432589811,0.51703684,1073.7,1071.0,1.4758666]
[1759432590009,0.51703684,1073.6,1071.0,1.4758666]
[1759432590213,0.51703684,1073.5,1071.0,1.4758666]
[1759432590412,0.83891724,1073.9,1071.0,1.4758666]
[1759432590718,0.83891724,1073.6,1071.0,1.4758666]
[1759432590913,0.51701697,1073.5,1071.0,1.4758666]
[1759432591112,0.51701697,1073.4,1071.0,1.4758666]
[1759432591311,0.51701697,1073.3,1071.0,1.4758666]
[1759432591515,0.51701697,1073.2,1071.0,1.4758666]
[1759432591712,0.51701697,1073.1,1071.0,1.4758666]
[1759432591916,0.83891724,1073.6,1071.0,1.4758666]
[1759432592213,0.51700968,1073.5,1071.0,1.4758666]
[1759432592412,0.51700968,1073.4,1071.0,1.4758666]
[1759432592612,0.51700968,1073.3,1071.0,1.4758666]
[1759432592815,0.51700968,1073.2,1071.0,1.4758666]
[1759432593018,0.51700968,1073.1,1071.0,1.4758666]
[1759432593218,0.83891724,1073.7,1071.0,1.4758666]
[1759432593421,0.51708445,1073.6,1071.0,1.4758666]
[1759432593721,0.51708445,1073.5,1071.0,1.4758666]
[1759432593918,0.51708445,1073.4,1071.0,1.4758666]
[1759432594120,0.51708445,1073.3,1071.0,1.4758666]
[1759432594320,0.51708445,1073.2,1071.0,1.4758666]
[1759432594517,0.51708445,1073.1,1071.0,1.4758666]
[1759432594718,0.51708085,1073.0,1071.0,1.4758666]
[1759432594916,0.51712619,1072.9,1071.0,1.4758666]
[1759432595218,0.83891724,1073.7,1071.0,1.4758666]
[1759432595419,0.51720491,1073.6,1071.0,1.4758666]
[1759432595618,0.51720491,1073.5,1071.0,1.4758666]
[1759432595818,0.51720491,1073.4,1071.0,1.4758666]
[1759432596117,0.51720491,1073.3,1071.0,1.4758666]
[1759432596319,0.51720491,1073.2,1071.0,1.4758666]
[1759432596518,0.51720491,1073.1,1071.0,1.4758666]
[1759432596718,0.51720491,1073.0,1071.0,1.4758666]
[1759432596922,0.83891724,1073.9,1071.0,1.4758666]
[1759432597223,0.51725574,1073.8,1071.0,1.4758666]
[1759432597420,0.51725574,1073.7,1071.0,1.4758666]
[1759432597620,0.51725574,1073.6,1071.0,1.4758666]
[1759432597920,0.51725574,1073.5,1071.0,1.4758666]
[1759432598119,0.51725574,1073.4,1071.0,1.4758666]
[1759432598420,0.51725574,1073.3,1071.0,1.4758666]
[1759432598620,0.51725574,1073.2,1071.0,1.4758666]
[1759432598921,0.51725574,1073.1,1071.0,1.4758666]
[1759432599221,0.51725574,1073.0,1071.0,1.4758666]
[1759432599418,0.83891724,1073.9,1071.0,1.4758666]
[1759432599618,0.51730786,1073.8,1071.0,1.4758666]
[1759432599920,0.51730786,1073.7,1071.0,1.4758666]
[1759432600119,0.51730786,1073.6,1071.0,1.4758666]
[1759432600318,0.51730786,1073.5,1071.0,1.4758666]
[1759432600517,0.51730786,1073.4,1071.0,1.4758666]
[1759432600721,0.83891724,1073.9,1071.0,1.4758666]
[1759432600722,0.51730786,1073.3,1071.0,1.4758666]
[1759432601020,0.51730786,1073.2,1071.0,1.4758666]
[1759432601320,0.51730786,1073.1,1071.0,1.4758666]
[1759432601519,0.51730786,1073.0,1071.0,1.4758666]
[1759432601719,0.83891724,1073.9,1071.0,1.4758666]
[1759432602021,1.35618523,1073.8,1071.0,1.4758666]
[1759432602224,0.51726799,1073.7,1071.0,1.4758666]
[1759432602424,0.51726799,1073.6,1071.0,1.4758666]
[1759432602623,0.51726799,1073.5,1071.0,1.4758666]
[1759432602824,0.51726799,1073.4,1071.0,1.4758666]
[1759432603024,0.51726799,1073.3,1071.0,1.4758666]
[1759432603324,0.51726799,1073.2,1071.0,1.4758666]
[1759432603519,0.51726799,1073.1,1071.0,1.4758666]
[1759432603720,0.51726799,1073.0,1071.0,1.4758666]
[1759432603921,0.83891724,1073.8,1071.0,1.4758666]
[1759432604122,0.5172887,1073.7,1071.0,1.4758666]
[1759432604324,0.5172887,1073.6,1071.0,1.4758666]
[1759432604621,0.5172887,1073.5,1071.0,1.4758666]
[1759432604819,0.5172887,1073.4,1071.0,1.4758666]
[1759432605020,0.5172887,1073.3,1071.0,1.4758666]
[1759432605221,0.5172887,1073.2,1071.0,1.4758666]
[1759432605422,0.5172887,1073.1,1071.0,1.4758666]
[1759432605622,0.5172887,1073.0,1071.0,1.4758666]
[1759432605823,0.83891724,1073.9,1071.0,1.4758666]
[1759432606022,0.5173666,1073.8,1071.0,1.4758666]
[1759432606222,0.5173666,1073.7,1071.0,1.4758666]
[1759432606425,0.5173666,1073.6,1071.0,1.4758666]
[1759432606623,0.5173666,1073.5,1071.0,1.4758666]
[1759432606826,0.5173666,1073.4,1071.0,1.4758666]
[1759432607126,0.5173666,1073.3,1071.0,1.4758666]
[1759432607326,0.5173666,1073.2,1071.0,1.4758666]
[1759432607528,0.5173666,1073.1,1071.0,1.4758666]
[1759432607724,0.5173666,1073.0,1071.0,1.4758666]
[1759432607925,0.83891724,1073.9,1071.0,1.4758666]
[1759432608128,0.51758151,1073.8,1071.0,1.4758666]
[1759432608328,0.51758151,1073.7,1071.0,1.4758666]
[1759432608626,0.51758151,1073.6,1071.0,1.4758666]
[1759432608825,0.51758151,1073.5,1071.0,1.4758666]
[1759432609128,0.51758151,1073.4,1071.0,1.4758666]
[1759432609328,0.51758151,1073.3,1071.0,1.4758666]
[1759432609628,0.51758151,1073.2,1071.0,1.4758666]
[1759432609925,0.51758151,1073.1,1071.0,1.4758666]
[1759432610228,0.51758151,1073.0,1071.0,1.4758666]
[1759432610424,0.83891724,1073.9,1071.0,1.4758666]
[1759432610626,0.51817739,1073.8,1071.0,1.4758666]
[1759432610929,0.51817739,1073.7,1071.0,1.4758666]
[1759432611130,0.51817739,1073.6,1071.0,1.4758666]
[1759432611425,0.51817739,1073.5,1071.0,1.4758666]
[1759432611629,0.51817739,1073.4,1071.0,1.4758666]
[1759432611827,0.51817739,1073.3,1071.0,1.4758666]
[1759432612025,0.51817739,1073.2,1071.0,1.4758666]
[1759432612229,0.51817739,1073.1,1071.0,1.4758666]
[1759432612428,0.51817739,1073.0,1071.0,1.4758666]
[1759432612627,0.83891724,1073.9,1071.0,1.4758666]
[1759432612829,0.51868463,1073.8,1071.0,1.4758666]
[1759432613028,0.51868463,1073.7,1071.0,1.4758666]
[1759432613232,0.51868463,1073.6,1071.0,1.4758666]
[1759432613429,0.51868463,1073.5,1071.0,1.4758666]
[1759432613634,0.51868463,1073.4,1071.0,1.4758666]
[1759432613930,0.51868463,1073.3,1071.0,1.4758666]
[1759432614133,0.51868463,1073.2,1071.0,1.4758666]
[1759432614334,0.51868463,1073.1,1071.0,1.4758666]
[1759432614534,0.51868463,1073.0,1071.0,1.4758666]
[1759432614733,0.83891724,1073.7,1071.1,1.23958032]
[1759432614930,1.35828942,1073.6,1071.2,1.23958032]
[1759432615135,0.51937218,1073.5,1071.3,2.75490674]
[1759432615334,0.51937218,1073.4,1071.3,2.75890674]
[1759432615631,0.83891724,1073.6,1071.3,1.51932642]
[1759432615632,0.51937218,1073.3,1071.3,1.51932642]
[1759432615833,0.51937218,1073.2,1071.3,1.51932642]
[1759432616031,0.51937218,1073.1,1071.3,1.51932642]
[1759432616230,0.51937218,1073.0,1071.3,2.75890674]
[1759432616431,0.83891724,1073.6,1071.3,2.75890674]
[1759432616634,0.52036052,1073.5,1071.3,2.75890674]
[1759432616833,0.52036052,1073.4,1071.3,2.75890674]
[1759432617035,0.52036052,1073.3,1071.3,2.75890674]
[1759432617231,0.52036052,1073.2,1071.4,1.23958032]
[1759432617432,0.52036052,1073.1,1071.4,1.23958032]
[1759432617736,0.52036052,1073.0,1071.3,1.51932642]
[1759432618035,0.52036052,1072.9,1071.3,1.51932642]
[1759432618236,0.5208666,1072.8,1071.3,1.51932642]
[1759432618536,0.83891724,1073.5,1071.3,2.75890674]
[1759432618734,1.35981507,1073.4,1071.3,2.75890674]
[1759432619035,0.52089783,1073.3,1071.3,2.75890674]
[1759432619234,0.52089783,1073.2,1071.4,1.23958032]
[1759432619432,0.52089783,1073.1,1071.3,1.51932642]
[1759432619634,0.52089783,1073.0,1071.3,1.51932642]
[1759432619832,1.2571997,1073.7,1071.3,1.51932642]